[Event "Sabato rapido!"]
[Site "Chess.com"]
[Date "2020.05.09"]
[Round "1"]
[White "SanSecondoPR"]
[Black "markk000"]
[Result "0-1"]
[WhiteElo "1246"]
[BlackElo "1518"]
[TimeControl "720+3"]
[EndTime "6:12:45 PDT"]
[Termination "markk000 ha vinto per abbandono"]

1. e4 {[%clk 0:11:58.1]} 1... c5 {[%clk 0:12:01.4]} 2. Nf3 {[%clk 0:11:57.8]}
2... Nc6 {[%clk 0:12:03.1]} 3. d4 {[%clk 0:11:58.8]} 3... cxd4 {[%clk 0:12:06]}
4. Nxd4 {[%clk 0:11:59.7]} 4... g6 {[%clk 0:12:06.9]} 5. c3 {[%clk 0:11:59.5]}
5... Bg7 {[%clk 0:12:07.4]} 6. Nd2 {[%clk 0:11:56.3]} 6... Nf6 {[%clk
0:12:03.7]} 7. Bd3 {[%clk 0:11:49.3]} 7... O-O {[%clk 0:12:01]} 8. N4b3 {[%clk
0:11:49.4]} 8... d6 {[%clk 0:11:54.6]} 9. O-O {[%clk 0:11:49.5]} 9... Bg4 {[%clk
0:11:46.9]} 10. Qe1 {[%clk 0:11:43.1]} 10... Ne5 {[%clk 0:11:45.3]} 11. Bb1
{[%clk 0:11:36.4]} 11... Rc8 {[%clk 0:11:31.5]} 12. Kh1 {[%clk 0:11:32.9]} 12...
Be6 {[%clk 0:11:21.5]} 13. f4 {[%clk 0:11:23.6]} 13... Nc4 {[%clk 0:11:22.2]}
14. Bd3 {[%clk 0:11:05.6]} 14... Nxd2 {[%clk 0:11:12]} 15. Bxd2 {[%clk
0:11:00.3]} 15... Qb6 {[%clk 0:10:56.2]} 16. f5 {[%clk 0:10:50.5]} 16... Bxb3
{[%clk 0:10:57.5]} 17. axb3 {[%clk 0:10:43.1]} 17... Qxb3 {[%clk 0:10:56.7]} 18.
Rb1 {[%clk 0:10:21.4]} 18... Nd7 {[%clk 0:10:22.8]} 19. h4 {[%clk 0:09:50.6]}
19... Ne5 {[%clk 0:10:22.7]} 20. Be2 {[%clk 0:09:40.5]} 20... Qc2 {[%clk
0:09:56.5]} 21. h5 {[%clk 0:09:21.1]} 21... Qxe4 {[%clk 0:09:50.6]} 22. Rf4
{[%clk 0:09:00]} 22... Qc2 {[%clk 0:09:44]} 23. Rc4 {[%clk 0:08:26.4]} 23...
Nxc4 {[%clk 0:09:38.2]} 24. Bxc4 {[%clk 0:08:10]} 24... Rxc4 {[%clk 0:09:30.4]}
25. Rc1 {[%clk 0:08:10]} 25... Qxf5 {[%clk 0:09:26.2]} 26. Kg1 {[%clk 0:08:00]}
26... Qxh5 {[%clk 0:09:22.9]} 27. Qxe7 {[%clk 0:07:40.6]} 27... Rh4 {[%clk
0:09:07.8]} 28. Bg5 {[%clk 0:07:28.7]} 28... Rh1+ {[%clk 0:09:08.6]} 29. Kf2
{[%clk 0:07:27.8]} 29... Rxc1 {[%clk 0:09:07.1]} 30. Bxc1 {[%clk 0:07:27.2]}
30... Qf5+ {[%clk 0:09:07.8]} 31. Kg1 {[%clk 0:07:25.3]} 31... Qc2 {[%clk
0:09:05.4]} 32. Be3 {[%clk 0:07:22.9]} 32... Qxb2 {[%clk 0:08:56.5]} 33. c4
{[%clk 0:06:59.2]} 33... Qe2 {[%clk 0:08:50.1]} 34. Qe4 {[%clk 0:06:53.9]} 34...
Be5 {[%clk 0:08:46.4]} 35. Qf3 {[%clk 0:06:46.8]} 35... Qxf3 {[%clk 0:08:43.2]}
0-1

[Event "Sabato rapido!"]
[Site "Chess.com"]
[Date "2020.05.09"]
[Round "1"]
[White "fausto2p"]
[Black "Mrtre7"]
[Result "0-1"]
[WhiteElo "1092"]
[BlackElo "1464"]
[TimeControl "720+3"]
[EndTime "6:14:41 PDT"]
[Termination "Mrtre7 ha vinto per scaccomatto"]

1. d4 {[%clk 0:12:00.5]} 1... d5 {[%clk 0:11:56]} 2. c4 {[%clk 0:12:00.7]} 2...
c6 {[%clk 0:11:55]} 3. Nf3 {[%clk 0:11:59.6]} 3... e6 {[%clk 0:11:54.3]} 4. Nc3
{[%clk 0:11:59]} 4... Bb4 {[%clk 0:11:53.6]} 5. e3 {[%clk 0:11:54]} 5... dxc4
{[%clk 0:11:43.6]} 6. Bxc4 {[%clk 0:11:53.1]} 6... b5 {[%clk 0:11:45.1]} 7. Bd3
{[%clk 0:11:49.2]} 7... Nf6 {[%clk 0:11:46.2]} 8. a3 {[%clk 0:11:43.5]} 8... Be7
{[%clk 0:11:39.5]} 9. b4 {[%clk 0:11:30.2]} 9... Nbd7 {[%clk 0:11:38.6]} 10. O-O
{[%clk 0:11:27.3]} 10... O-O {[%clk 0:11:24.8]} 11. e4 {[%clk 0:10:59]} 11... a5
{[%clk 0:11:19.7]} 12. Bd2 {[%clk 0:08:58.8]} 12... axb4 {[%clk 0:11:14.3]} 13.
axb4 {[%clk 0:08:58]} 13... Rxa1 {[%clk 0:11:13.1]} 14. Qxa1 {[%clk 0:08:57.7]}
14... Bxb4 {[%clk 0:11:13.5]} 15. Qb2 {[%clk 0:08:34.4]} 15... Be7 {[%clk
0:11:03.9]} 16. h3 {[%clk 0:08:22.1]} 16... Bb7 {[%clk 0:10:59.3]} 17. e5 {[%clk
0:08:16.8]} 17... Nd5 {[%clk 0:10:54.8]} 18. Nxd5 {[%clk 0:08:15.9]} 18... exd5
{[%clk 0:10:55]} 19. Qc2 {[%clk 0:07:49.1]} 19... g6 {[%clk 0:10:43.8]} 20. Ra1
{[%clk 0:07:12.4]} 20... Nb6 {[%clk 0:10:28.2]} 21. Ra7 {[%clk 0:06:53]} 21...
Ba8 {[%clk 0:09:53.2]} 22. Ra2 {[%clk 0:05:55.8]} 22... Nc4 {[%clk 0:09:50.5]}
23. Bxc4 {[%clk 0:05:37.1]} 23... dxc4 {[%clk 0:09:46]} 24. Ba5 {[%clk 0:05:33]}
24... Qd7 {[%clk 0:09:36.8]} 25. Nh2 {[%clk 0:04:06.5]} 25... Qxd4 {[%clk
0:09:29.9]} 26. Bc3 {[%clk 0:04:04.7]} 26... Qd5 {[%clk 0:09:16.5]} 27. Ng4
{[%clk 0:03:52.5]} 27... c5 {[%clk 0:09:15]} 28. Qc1 {[%clk 0:03:35.5]} 28...
Qxg2# {[%clk 0:09:13.9]} 0-1

[Event "Sabato rapido!"]
[Site "Chess.com"]
[Date "2020.05.09"]
[Round "1"]
[White "pedrak"]
[Black "Luca090267"]
[Result "1-0"]
[WhiteElo "1709"]
[BlackElo "1366"]
[TimeControl "720+3"]
[EndTime "6:21:42 PDT"]
[Termination "pedrak ha vinto per abbandono"]

1. d4 {[%clk 0:12:01.8]} 1... Nf6 {[%clk 0:12:01]} 2. Nf3 {[%clk 0:12:02.6]}
2... g6 {[%clk 0:12:02.6]} 3. h3 {[%clk 0:12:03.5]} 3... Bg7 {[%clk 0:12:04.5]}
4. Bf4 {[%clk 0:12:04.5]} 4... O-O {[%clk 0:12:05.2]} 5. e3 {[%clk 0:12:05.6]}
5... d6 {[%clk 0:12:07.1]} 6. Be2 {[%clk 0:12:06.8]} 6... c5 {[%clk 0:11:56]} 7.
c3 {[%clk 0:12:07.2]} 7... cxd4 {[%clk 0:11:56.6]} 8. exd4 {[%clk 0:12:08.4]}
8... Nc6 {[%clk 0:11:57.4]} 9. O-O {[%clk 0:12:09.3]} 9... a6 {[%clk 0:11:41.4]}
10. Nbd2 {[%clk 0:12:09]} 10... b5 {[%clk 0:11:40.3]} 11. a3 {[%clk 0:12:08]}
11... Bb7 {[%clk 0:11:41.2]} 12. Re1 {[%clk 0:12:08.8]} 12... Qc7 {[%clk
0:11:02.1]} 13. Bd3 {[%clk 0:12:02.4]} 13... Rac8 {[%clk 0:10:25.5]} 14. Nb3
{[%clk 0:11:50.8]} 14... Qb6 {[%clk 0:09:26]} 15. Qd2 {[%clk 0:11:40.1]} 15...
Na5 {[%clk 0:09:12]} 16. Nxa5 {[%clk 0:11:20.4]} 16... Qxa5 {[%clk 0:09:11.6]}
17. Rxe7 {[%clk 0:11:01.9]} 17... Bxf3 {[%clk 0:09:13]} 18. gxf3 {[%clk
0:11:02.8]} 18... Nd5 {[%clk 0:09:13.5]} 19. Re2 {[%clk 0:10:51]} 19... Nxf4
{[%clk 0:09:07]} 20. Qxf4 {[%clk 0:10:51.8]} 20... Qc7 {[%clk 0:09:03.5]} 21.
Rae1 {[%clk 0:10:51.3]} 21... Qd7 {[%clk 0:08:38.1]} 22. Qg4 {[%clk 0:10:46.4]}
22... f5 {[%clk 0:08:25.4]} 23. Qf4 {[%clk 0:10:37.6]} 23... Bf6 {[%clk
0:07:53.3]} 24. Re6 {[%clk 0:10:30]} 24... Rcd8 {[%clk 0:07:51.8]} 25. h4 {[%clk
0:10:15.4]} 25... Kg7 {[%clk 0:07:35.3]} 26. Kg2 {[%clk 0:09:42]} 26... Rf7
{[%clk 0:07:09.1]} 27. Qg3 {[%clk 0:09:28]} 27... Re7 {[%clk 0:06:40.4]} 28.
Bxf5 {[%clk 0:09:10.1]} 28... Rxe6 {[%clk 0:06:26.8]} 29. Bxe6 {[%clk 0:09:07]}
29... Qe7 {[%clk 0:06:07.6]} 30. h5 {[%clk 0:09:06.5]} 30... g5 {[%clk
0:05:54.6]} 31. f4 {[%clk 0:09:01.3]} 31... h6 {[%clk 0:05:55.5]} 32. fxg5
{[%clk 0:08:56.9]} 32... hxg5 {[%clk 0:05:55.2]} 33. f4 {[%clk 0:08:49.6]} 33...
Kh6 {[%clk 0:05:51.2]} 34. fxg5+ {[%clk 0:08:43.6]} 34... Bxg5 {[%clk
0:05:52.7]} 35. Bg4 {[%clk 0:08:25.1]} 35... Qf8 {[%clk 0:05:03.4]} 36. Re6+
{[%clk 0:08:13.6]} 36... Kh7 {[%clk 0:04:45.1]} 37. Qd3+ {[%clk 0:07:37.5]}
37... Kh8 {[%clk 0:04:36.7]} 38. Qg6 {[%clk 0:07:29]} 38... Qg8 {[%clk
0:04:08.7]} 39. Rxd6 {[%clk 0:07:15.9]} 39... Rxd6 {[%clk 0:03:51.3]} 40. Qxd6
{[%clk 0:07:16.7]} 40... Qd8 {[%clk 0:03:18.8]} 41. Qe5+ {[%clk 0:07:13]} 41...
Bf6 {[%clk 0:03:18.7]} 42. Qe6 {[%clk 0:06:59.9]} 42... Qe7 {[%clk 0:03:13.2]}
43. Kf3 {[%clk 0:06:55.5]} 43... Bg5 {[%clk 0:03:04]} 44. Qxe7 {[%clk
0:06:37.2]} 44... Bxe7 {[%clk 0:03:05.1]} 45. b3 {[%clk 0:06:37.8]} 45... Bxa3
{[%clk 0:03:02.7]} 46. Ke4 {[%clk 0:06:39.4]} 46... a5 {[%clk 0:02:50.6]} 47.
Ke5 {[%clk 0:06:37.2]} 47... b4 {[%clk 0:02:52.1]} 48. cxb4 {[%clk 0:06:36.4]}
48... axb4 {[%clk 0:02:53.1]} 49. d5 {[%clk 0:06:37.5]} 49... Kg7 {[%clk
0:02:45.1]} 50. Ke6 {[%clk 0:06:38.6]} 50... Kf8 {[%clk 0:02:43.7]} 51. Kd7
{[%clk 0:06:30.1]} 51... Bb2 {[%clk 0:02:38.6]} 52. d6 {[%clk 0:06:29.4]} 52...
Kf7 {[%clk 0:02:25.6]} 53. Kc8 {[%clk 0:06:27.2]} 53... Bd4 {[%clk 0:02:02.6]}
54. d7 {[%clk 0:06:26.7]} 1-0

[Event "Sabato rapido!"]
[Site "Chess.com"]
[Date "2020.05.09"]
[Round "1"]
[White "sergiodone"]
[Black "OMatteoWuO"]
[Result "1-0"]
[WhiteElo "1498"]
[BlackElo "1182"]
[TimeControl "720+3"]
[EndTime "6:27:50 PDT"]
[Termination "sergiodone ha vinto per abbandono"]

1. e4 {[%clk 0:12:00.2]} 1... c5 {[%clk 0:12:00.7]} 2. Nf3 {[%clk 0:12:00.3]}
2... Nc6 {[%clk 0:12:01.4]} 3. d4 {[%clk 0:12:02]} 3... cxd4 {[%clk 0:11:58.1]}
4. Nxd4 {[%clk 0:12:01.7]} 4... Nf6 {[%clk 0:11:57.9]} 5. Nxc6 {[%clk
0:11:56.8]} 5... bxc6 {[%clk 0:11:39]} 6. e5 {[%clk 0:11:57.7]} 6... Qa5+ {[%clk
0:11:32.4]} 7. Nc3 {[%clk 0:11:38.1]} 7... Qxe5+ {[%clk 0:11:32.7]} 8. Be2
{[%clk 0:11:33.3]} 8... d6 {[%clk 0:11:01.4]} 9. O-O {[%clk 0:11:33.3]} 9... e6
{[%clk 0:10:36.7]} 10. Re1 {[%clk 0:11:31.4]} 10... Qa5 {[%clk 0:10:29.1]} 11.
Bf3 {[%clk 0:11:22.3]} 11... Qc7 {[%clk 0:10:22.4]} 12. g3 {[%clk 0:11:02.6]}
12... Be7 {[%clk 0:10:21.4]} 13. b3 {[%clk 0:10:51.2]} 13... e5 {[%clk
0:10:16.3]} 14. Bb2 {[%clk 0:10:51.9]} 14... Be6 {[%clk 0:09:56.5]} 15. a4
{[%clk 0:10:43.8]} 15... d5 {[%clk 0:09:47.6]} 16. Qe2 {[%clk 0:09:36]} 16... e4
{[%clk 0:09:40.3]} 17. Bg2 {[%clk 0:09:18.8]} 17... O-O {[%clk 0:09:29.2]} 18.
h3 {[%clk 0:09:08]} 18... h6 {[%clk 0:09:19.9]} 19. Qe3 {[%clk 0:08:32.3]} 19...
Nh7 {[%clk 0:08:23.1]} 20. Nd1 {[%clk 0:08:07.6]} 20... Bg5 {[%clk 0:08:06.8]}
21. Qe2 {[%clk 0:07:48.2]} 21... f5 {[%clk 0:07:47.8]} 22. h4 {[%clk 0:07:47.2]}
22... Bf6 {[%clk 0:07:48.5]} 23. Qe3 {[%clk 0:07:28.4]} 23... Bxb2 {[%clk
0:07:43.4]} 24. Nxb2 {[%clk 0:07:27]} 24... f4 {[%clk 0:07:27.2]} 25. gxf4
{[%clk 0:07:02.9]} 25... Rxf4 {[%clk 0:07:19.1]} 26. Qg3 {[%clk 0:06:54.2]}
26... Raf8 {[%clk 0:06:45.8]} 27. Nd3 {[%clk 0:06:33.3]} 27... R4f7 {[%clk
0:06:24]} 28. Ne5 {[%clk 0:06:25.3]} 28... Rf6 {[%clk 0:05:38.8]} 29. c4 {[%clk
0:04:47.5]} 29... g5 {[%clk 0:04:58.2]} 30. cxd5 {[%clk 0:04:47.7]} 30... Bxd5
{[%clk 0:04:47.4]} 31. Ng4 {[%clk 0:04:36.8]} 31... Qxg3 {[%clk 0:04:40.9]} 32.
fxg3 {[%clk 0:04:37.2]} 32... Re6 {[%clk 0:04:16.5]} 33. h5 {[%clk 0:04:30.9]}
33... Bxb3 {[%clk 0:03:54.7]} 34. Re3 {[%clk 0:04:20]} 34... Bd5 {[%clk
0:03:50.9]} 35. a5 {[%clk 0:04:18.5]} 35... a6 {[%clk 0:03:40.6]} 36. Rb1 {[%clk
0:04:06.5]} 36... Kg7 {[%clk 0:03:17.4]} 37. Rb6 {[%clk 0:03:55.3]} 37... Nf6
{[%clk 0:03:10.8]} 38. Nxf6 {[%clk 0:03:40.7]} 38... Rfxf6 {[%clk 0:03:09.5]}
39. Rxa6 {[%clk 0:03:37.2]} 39... Rf8 {[%clk 0:03:04.7]} 40. Ra7+ {[%clk
0:03:38.3]} 40... Kh8 {[%clk 0:03:03]} 41. Bh3 {[%clk 0:03:22.7]} 41... Ref6
{[%clk 0:02:32.5]} 42. Bg2 {[%clk 0:02:48.3]} 42... g4 {[%clk 0:02:21.6]} 43.
Rc7 {[%clk 0:02:48.2]} 43... R8f7 {[%clk 0:01:40.4]} 44. Rxf7 {[%clk 0:02:26.6]}
44... Rxf7 {[%clk 0:01:42.1]} 45. Bxe4 {[%clk 0:02:18.3]} 45... Bxe4 {[%clk
0:01:37.5]} 46. Rxe4 {[%clk 0:02:19.7]} 46... Ra7 {[%clk 0:01:37.5]} 47. Rxg4
{[%clk 0:02:19]} 47... Rxa5 {[%clk 0:01:38.9]} 48. Rg6 {[%clk 0:02:20.6]} 48...
Rxh5 {[%clk 0:01:37.5]} 49. Rxc6 {[%clk 0:02:21.7]} 49... Rg5 {[%clk 0:01:38.8]}
50. Kg2 {[%clk 0:02:23.6]} 50... Kg7 {[%clk 0:01:40.3]} 51. Kh3 {[%clk 0:02:20]}
51... Kf7 {[%clk 0:01:25]} 52. Kh4 {[%clk 0:02:21.2]} 52... Kg7 {[%clk 0:01:23]}
53. g4 {[%clk 0:02:15.9]} 53... Kf7 {[%clk 0:01:24.3]} 54. Rxh6 {[%clk
0:02:15.8]} 54... Rd5 {[%clk 0:01:12.2]} 55. Rb6 {[%clk 0:02:15.2]} 55... Kf8
{[%clk 0:01:12.3]} 56. g5 {[%clk 0:02:16.3]} 56... Kf7 {[%clk 0:01:11]} 57. Kh5
{[%clk 0:02:18]} 57... Kg8 {[%clk 0:01:12.5]} 58. Rb7 {[%clk 0:02:17.5]} 58...
Rc5 {[%clk 0:01:07.3]} 59. Kh6 {[%clk 0:02:18]} 59... Rc6+ {[%clk 0:01:09.2]}
60. g6 {[%clk 0:02:19.6]} 60... Kf8 {[%clk 0:01:08.4]} 61. Kh7 {[%clk
0:02:10.2]} 1-0

[Event "Sabato rapido!"]
[Site "Chess.com"]
[Date "2020.05.09"]
[Round "2"]
[White "sergiodone"]
[Black "pedrak"]
[Result "0-1"]
[WhiteElo "1494"]
[BlackElo "1715"]
[TimeControl "720+3"]
[EndTime "6:34:17 PDT"]
[Termination "pedrak ha vinto per scaccomatto"]

1. e4 {[%clk 0:11:48.5]} 1... d5 {[%clk 0:11:57.9]} 2. exd5 {[%clk 0:11:45.7]}
2... Qxd5 {[%clk 0:11:59]} 3. c4 {[%clk 0:11:46.5]} 3... Qe5+ {[%clk 0:11:53]}
4. Be2 {[%clk 0:11:44.4]} 4... c6 {[%clk 0:11:53.6]} 5. d4 {[%clk 0:11:45.8]}
5... Qc7 {[%clk 0:11:53.5]} 6. Nc3 {[%clk 0:11:46.4]} 6... Bf5 {[%clk
0:11:52.7]} 7. h3 {[%clk 0:11:33.9]} 7... e6 {[%clk 0:11:53.4]} 8. g4 {[%clk
0:11:30.4]} 8... Bg6 {[%clk 0:11:54.2]} 9. h4 {[%clk 0:11:31.6]} 9... h6 {[%clk
0:11:49.9]} 10. h5 {[%clk 0:11:33]} 10... Bh7 {[%clk 0:11:50.4]} 11. Nf3 {[%clk
0:11:10.8]} 11... Bb4 {[%clk 0:11:48.8]} 12. Be3 {[%clk 0:11:03.4]} 12... Ne7
{[%clk 0:11:34.3]} 13. O-O {[%clk 0:10:58.3]} 13... Bxc3 {[%clk 0:11:28.9]} 14.
bxc3 {[%clk 0:10:59]} 14... Nd7 {[%clk 0:11:21.8]} 15. Qd2 {[%clk 0:10:52.7]}
15... Nf6 {[%clk 0:11:15.3]} 16. Ne5 {[%clk 0:10:39.8]} 16... Ne4 {[%clk
0:11:07]} 17. Qc1 {[%clk 0:10:37]} 17... f6 {[%clk 0:11:07]} 18. Nf3 {[%clk
0:10:06.3]} 18... Ng5 {[%clk 0:10:42.6]} 19. Nxg5 {[%clk 0:09:58.5]} 19... hxg5
{[%clk 0:10:33.7]} 20. f4 {[%clk 0:09:56]} 20... Be4 {[%clk 0:10:19.6]} 21. fxg5
{[%clk 0:09:49.2]} 21... Qg3# {[%clk 0:10:18.1]} 0-1

[Event "Sabato rapido!"]
[Site "Chess.com"]
[Date "2020.05.09"]
[Round "2"]
[White "Luca090267"]
[Black "OMatteoWuO"]
[Result "1-0"]
[WhiteElo "1379"]
[BlackElo "1174"]
[TimeControl "720+3"]
[EndTime "6:39:22 PDT"]
[Termination "Luca090267 ha vinto per abbandono"]

1. e4 {[%clk 0:12:02.9]} 1... c5 {[%clk 0:12:01.3]} 2. Nc3 {[%clk 0:12:03.4]}
2... Nc6 {[%clk 0:12:01.6]} 3. g3 {[%clk 0:12:04.9]} 3... d6 {[%clk 0:11:59]} 4.
Bg2 {[%clk 0:12:06.6]} 4... Nf6 {[%clk 0:11:53.8]} 5. d3 {[%clk 0:12:08.9]} 5...
e6 {[%clk 0:11:49.5]} 6. f4 {[%clk 0:12:11.2]} 6... g6 {[%clk 0:11:31.4]} 7. Nf3
{[%clk 0:12:13.1]} 7... Bg7 {[%clk 0:11:27.8]} 8. O-O {[%clk 0:12:14.5]} 8...
O-O {[%clk 0:11:28.4]} 9. h3 {[%clk 0:12:11.6]} 9... Nd7 {[%clk 0:11:07.2]} 10.
g4 {[%clk 0:12:08.7]} 10... f5 {[%clk 0:10:49.2]} 11. exf5 {[%clk 0:11:45.7]}
11... exf5 {[%clk 0:10:48.5]} 12. g5 {[%clk 0:11:44]} 12... Re8 {[%clk
0:10:23.3]} 13. Re1 {[%clk 0:11:41.1]} 13... Nf8 {[%clk 0:10:15.2]} 14. Nd5
{[%clk 0:11:26]} 14... Be6 {[%clk 0:10:00.2]} 15. Nd2 {[%clk 0:11:06]} 15...
Bd4+ {[%clk 0:09:35.6]} 16. Kh2 {[%clk 0:10:54.7]} 16... Bxd5 {[%clk 0:08:23.6]}
17. Bxd5+ {[%clk 0:10:53.7]} 17... Kh8 {[%clk 0:08:25.5]} 18. c3 {[%clk
0:10:34.1]} 18... Bg7 {[%clk 0:08:14.6]} 19. Nc4 {[%clk 0:10:13]} 19... h6
{[%clk 0:07:39.6]} 20. h4 {[%clk 0:10:05.4]} 20... hxg5 {[%clk 0:07:39.5]} 21.
hxg5 {[%clk 0:10:05.4]} 21... Ne6 {[%clk 0:07:08.5]} 22. Rxe6 {[%clk 0:09:40.7]}
22... Rxe6 {[%clk 0:07:01.3]} 23. Bxe6 {[%clk 0:09:40.7]} 23... Qe7 {[%clk
0:07:02.3]} 24. Qe1 {[%clk 0:08:59.7]} 24... Ne5 {[%clk 0:06:44.7]} 25. Qh4+
{[%clk 0:08:56.7]} 25... Bh6 {[%clk 0:06:40]} 26. Qxh6+ {[%clk 0:08:57.4]} 26...
Qh7 {[%clk 0:06:41.7]} 1-0

[Event "Sabato rapido!"]
[Site "Chess.com"]
[Date "2020.05.09"]
[Round "2"]
[White "markk000"]
[Black "ottovolante"]
[Result "1-0"]
[WhiteElo "1519"]
[BlackElo "1007"]
[TimeControl "720+3"]
[EndTime "6:42:35 PDT"]
[Termination "markk000 ha vinto per abbandono"]

1. d4 {[%clk 0:12:02.9]} 1... e6 {[%clk 0:11:58.6]} 2. c4 {[%clk 0:12:04]} 2...
Nf6 {[%clk 0:11:56.3]} 3. Nc3 {[%clk 0:12:05.7]} 3... a6 {[%clk 0:11:49]} 4. Nf3
{[%clk 0:12:04.5]} 4... d5 {[%clk 0:11:48]} 5. Bg5 {[%clk 0:12:05.8]} 5... h6
{[%clk 0:11:47.4]} 6. Bh4 {[%clk 0:12:06.3]} 6... Bb4 {[%clk 0:11:41.6]} 7. a3
{[%clk 0:12:00.3]} 7... Bxc3+ {[%clk 0:11:43.2]} 8. bxc3 {[%clk 0:12:03.2]} 8...
O-O {[%clk 0:11:29.7]} 9. e3 {[%clk 0:12:04.6]} 9... Nbd7 {[%clk 0:11:24.2]} 10.
Bd3 {[%clk 0:12:04.2]} 10... Qe8 {[%clk 0:11:20.5]} 11. O-O {[%clk 0:12:04.5]}
11... c6 {[%clk 0:10:16.8]} 12. Re1 {[%clk 0:11:31.5]} 12... Nb6 {[%clk
0:09:38]} 13. Bxf6 {[%clk 0:11:11]} 13... gxf6 {[%clk 0:09:38]} 14. c5 {[%clk
0:11:07.8]} 14... Nd7 {[%clk 0:09:38.2]} 15. Nd2 {[%clk 0:11:06.9]} 15... f5
{[%clk 0:09:34.2]} 16. Qh5 {[%clk 0:11:06.4]} 16... Kh7 {[%clk 0:09:35.5]} 17.
c4 {[%clk 0:10:53.5]} 17... Nf6 {[%clk 0:09:37.2]} 18. Qe2 {[%clk 0:10:49.6]}
18... Rg8 {[%clk 0:09:00]} 19. cxd5 {[%clk 0:10:38.3]} 19... cxd5 {[%clk
0:08:56.8]} 20. Nf3 {[%clk 0:10:29.7]} 20... Bd7 {[%clk 0:08:56.7]} 21. Ne5
{[%clk 0:10:30.2]} 21... Bb5 {[%clk 0:08:43.2]} 22. Bxb5 {[%clk 0:10:22.6]}
22... axb5 {[%clk 0:08:44]} 23. Rab1 {[%clk 0:10:15]} 23... Rxa3 {[%clk
0:08:30.2]} 24. Qxb5 {[%clk 0:10:16.7]} 24... Qxb5 {[%clk 0:08:30.5]} 25. Rxb5
{[%clk 0:10:19.6]} 25... Ra7 {[%clk 0:08:21.6]} 26. Nxf7 {[%clk 0:10:17.3]}
26... Rga8 {[%clk 0:07:44.9]} 27. h3 {[%clk 0:09:54.4]} 27... Ra1 {[%clk
0:07:42.5]} 28. Rxa1 {[%clk 0:09:46.5]} 28... Rxa1+ {[%clk 0:07:42.9]} 29. Kh2
{[%clk 0:09:48.9]} 29... Ra7 {[%clk 0:07:43.5]} 30. Rb6 {[%clk 0:09:49.6]} 30...
Ne4 {[%clk 0:07:42]} 31. f3 {[%clk 0:09:36.7]} 31... Nc3 {[%clk 0:07:09.7]} 32.
Rxe6 {[%clk 0:09:32.7]} 32... Kg7 {[%clk 0:06:59.1]} 33. Nxh6 {[%clk 0:09:29]}
33... f4 {[%clk 0:06:25.7]} 34. exf4 {[%clk 0:09:13.5]} 34... Nb5 {[%clk
0:06:03.8]} 35. Nf5+ {[%clk 0:09:03.7]} 35... Kf7 {[%clk 0:06:04.2]} 36. Re5
{[%clk 0:08:58.5]} 36... Nc3 {[%clk 0:05:59.1]} 37. Nd6+ {[%clk 0:08:50.1]}
37... Kf6 {[%clk 0:05:56.2]} 38. Ne8+ {[%clk 0:08:38]} 38... Kg6 {[%clk
0:05:54.4]} 39. Nc7 {[%clk 0:08:36.3]} 39... b6 {[%clk 0:05:36.9]} 40. cxb6
{[%clk 0:08:37.8]} 40... Ra5 {[%clk 0:05:36.2]} 41. b7 {[%clk 0:08:37.2]} 1-0

[Event "Sabato rapido!"]
[Site "Chess.com"]
[Date "2020.05.09"]
[Round "2"]
[White "Mrtre7"]
[Black "crippo"]
[Result "0-1"]
[WhiteElo "1441"]
[BlackElo "1478"]
[TimeControl "720+3"]
[EndTime "6:52:11 PDT"]
[Termination "crippo ha vinto per abbandono"]

1. d4 {[%clk 0:12:02.9]} 1... d5 {[%clk 0:11:56]} 2. c4 {[%clk 0:12:03.6]} 2...
c6 {[%clk 0:11:54.9]} 3. Nf3 {[%clk 0:12:03.1]} 3... Nf6 {[%clk 0:11:52]} 4. e3
{[%clk 0:12:03.6]} 4... e6 {[%clk 0:11:52.7]} 5. Bd3 {[%clk 0:12:02.3]} 5...
Bb4+ {[%clk 0:11:53.4]} 6. Nc3 {[%clk 0:11:35.7]} 6... O-O {[%clk 0:11:39.8]} 7.
O-O {[%clk 0:11:35.6]} 7... Bxc3 {[%clk 0:11:41.3]} 8. bxc3 {[%clk 0:11:37]}
8... Ne4 {[%clk 0:11:43.9]} 9. cxd5 {[%clk 0:11:08.3]} 9... cxd5 {[%clk
0:11:41.6]} 10. c4 {[%clk 0:10:36.3]} 10... Nc6 {[%clk 0:11:30.3]} 11. Ba3
{[%clk 0:10:16]} 11... Re8 {[%clk 0:11:27.8]} 12. cxd5 {[%clk 0:10:02.1]} 12...
exd5 {[%clk 0:11:28]} 13. Qc2 {[%clk 0:08:55.5]} 13... Bg4 {[%clk 0:11:25]} 14.
Nd2 {[%clk 0:08:40.8]} 14... Rc8 {[%clk 0:10:51.2]} 15. Qb2 {[%clk 0:07:01.8]}
15... Qg5 {[%clk 0:09:53.4]} 16. Nxe4 {[%clk 0:05:11.7]} 16... dxe4 {[%clk
0:09:50.2]} 17. Be2 {[%clk 0:03:40]} 17... Bh3 {[%clk 0:09:48.9]} 18. g3 {[%clk
0:03:35.5]} 18... Bxf1 {[%clk 0:09:50.3]} 19. Bxf1 {[%clk 0:03:37.3]} 19... b6
{[%clk 0:09:44.4]} 20. Rd1 {[%clk 0:03:21]} 20... Qd5 {[%clk 0:09:29.3]} 21. Rc1
{[%clk 0:02:55.5]} 21... Na5 {[%clk 0:09:10.8]} 22. Ba6 {[%clk 0:02:14.3]} 22...
Rxc1+ {[%clk 0:09:08.1]} 23. Qxc1 {[%clk 0:02:13.6]} 23... Qxa2 {[%clk
0:09:08.4]} 24. Bd6 {[%clk 0:01:55.8]} 24... Qe6 {[%clk 0:08:49.8]} 25. Be5
{[%clk 0:01:47.1]} 25... f6 {[%clk 0:08:39.9]} 26. Bc7 {[%clk 0:01:15.1]} 26...
Kh8 {[%clk 0:08:38.1]} 27. Qc3 {[%clk 0:00:55.7]} 27... Qd5 {[%clk 0:08:18.9]}
28. Qb4 {[%clk 0:00:46.8]} 28... h6 {[%clk 0:08:09]} 29. Bb5 {[%clk 0:00:48.1]}
29... Rc8 {[%clk 0:08:06.9]} 30. Bd6 {[%clk 0:00:49.3]} 30... Qf5 {[%clk
0:08:01.3]} 31. Qa4 {[%clk 0:00:33.9]} 31... Qf3 {[%clk 0:07:56.6]} 32. Bf1
{[%clk 0:00:33.4]} 32... Qf5 {[%clk 0:07:48.4]} 33. Bb5 {[%clk 0:00:33.2]} 33...
Rc1+ {[%clk 0:07:47.2]} 34. Kg2 {[%clk 0:00:32.8]} 34... Qf3+ {[%clk 0:07:47.8]}
35. Kh3 {[%clk 0:00:34.6]} 35... Rc8 {[%clk 0:07:45.1]} 36. Qa2 {[%clk
0:00:22.6]} 36... g5 {[%clk 0:07:35.7]} 37. Qf7 {[%clk 0:00:23.9]} 37... g4+
{[%clk 0:07:34.3]} 38. Kh4 {[%clk 0:00:24.7]} 38... Qf5 {[%clk 0:07:28.8]} 39.
Qh5 {[%clk 0:00:23.2]} 39... Qxh5+ {[%clk 0:06:54.6]} 40. Kxh5 {[%clk
0:00:24.8]} 40... Nb7 {[%clk 0:06:48.1]} 41. Bf4 {[%clk 0:00:25]} 41... f5
{[%clk 0:06:38.9]} 42. Bxh6 {[%clk 0:00:20.8]} 42... Nd6 {[%clk 0:06:38.9]} 43.
Bd7 {[%clk 0:00:18.5]} 43... Rc7 {[%clk 0:06:38.7]} 44. Be6 {[%clk 0:00:17.5]}
44... a5 {[%clk 0:06:32.3]} 45. d5 {[%clk 0:00:18.4]} 45... a4 {[%clk
0:06:33.2]} 46. Bf4 {[%clk 0:00:19.8]} 46... Rh7+ {[%clk 0:06:33.1]} 47. Kg6
{[%clk 0:00:20.3]} 47... Nb5 {[%clk 0:06:23.8]} 48. Bxf5 {[%clk 0:00:18.4]}
48... Rg7+ {[%clk 0:06:24.7]} 49. Kf6 {[%clk 0:00:18.7]} 49... a3 {[%clk
0:06:23.6]} 50. Be5 {[%clk 0:00:19.3]} 50... Kg8 {[%clk 0:06:24.2]} 51. Ke6
{[%clk 0:00:19.2]} 51... a2 {[%clk 0:06:20.9]} 52. Bxg7 {[%clk 0:00:19.9]} 52...
Kxg7 {[%clk 0:06:20.8]} 53. Bxe4 {[%clk 0:00:18.4]} 53... a1=Q {[%clk
0:06:21.8]} 54. d6 {[%clk 0:00:20.3]} 54... Qa2+ {[%clk 0:06:20.9]} 55. Ke5
{[%clk 0:00:21.5]} 55... Qf7 {[%clk 0:06:18.6]} 56. Bd5 {[%clk 0:00:20.8]} 56...
Qf6+ {[%clk 0:06:20.1]} 57. Ke4 {[%clk 0:00:20.5]} 57... Qxd6 {[%clk 0:06:21.7]}
58. Bc4 {[%clk 0:00:17]} 58... Nc3+ {[%clk 0:06:22.5]} 59. Kf5 {[%clk
0:00:16.2]} 59... Qc5+ {[%clk 0:06:23.9]} 0-1